bitfinex/quotes_ETHUSD_20250731
["timestamp","ask_amount","ask_price","bid_price","bid_amount"]
[1753931522553,1e-08,3867.2,3866.0,0.02586652]
[1753931523281,1e-08,3867.2,3866.1,4.20597039]
[1753931523579,1e-08,3867.2,3866.2,4.18010454]
[1753931524884,1e-08,3867.2,3866.3,4.82393839]
[1753931525180,1e-08,3867.2,3866.3,4.84980291]
[1753931526151,1e-08,3867.2,3866.3,4.82393839]
[1753931526351,1e-08,3867.2,3866.4,0.02586385]
[1753931526661,1e-08,3867.2,3866.3,4.82393839]
[1753931526861,1e-08,3867.2,3866.4,0.02586385]
[1753931527062,1e-08,3867.2,3866.3,4.82393839]
[1753931527253,1e-08,3867.2,3866.4,0.02586385]
[1753931527455,1e-08,3867.2,3866.5,4.18010454]
[1753931527853,1e-08,3867.2,3866.6,0.02586251]
[1753931528054,1e-08,3867.2,3866.5,4.18010454]
[1753931528055,1e-08,3867.2,3866.5,4.20596772]
[1753931528455,1e-08,3867.2,3866.5,4.18010454]
[1753931532790,1e-08,3867.2,3866.2,4.82393839]
[1753931536716,1e-08,3867.2,3866.2,4.84980358]
[1753931537217,1e-08,3867.2,3866.2,4.82393839]
[1753931545099,1e-08,3867.2,3866.3,0.02586452]
[1753931546266,1e-08,3867.2,3866.8,4.82393839]
[1753931546467,1e-08,3867.2,3866.9,4.20596504]
[1753931546778,1e-08,3867.2,3867.0,4.18010454]
[1753931547098,1e-08,3867.2,3867.1,4.18010454]
[1753931551102,1e-08,3867.2,3866.6,4.18010454]
[1753931552090,1e-08,3867.2,3866.7,0.02586184]
[1753931552603,1e-08,3867.2,3866.6,4.18010454]
[1753931553284,1e-08,3867.2,3866.7,4.20596638]
[1753931553893,1e-08,3867.2,3866.8,4.18010454]
[1753931554188,1e-08,3867.2,3866.9,0.0258605]
[1753931555314,1e-08,3867.2,3867.0,4.18010454]
[1753931555503,1e-08,3867.2,3867.1,4.18010454]
[1753931558117,1e-08,3867.2,3867.1,4.20596371]
[1753931561012,1e-08,3867.6,3867.1,4.18010454]
[1753931561586,1e-08,3867.6,3867.2,4.18010454]
[1753931562322,1e-08,3867.6,3867.3,4.18010454]
[1753931563298,1e-08,3867.6,3867.4,4.18010454]
[1753931563992,1e-08,3867.6,3867.5,4.18010454]
[1753931567639,1e-08,3867.6,3866.4,4.18010454]
[1753931567791,1e-08,3867.6,3866.5,0.02586318]
[1753931568916,1e-08,3867.6,3866.4,4.18010454]
[1753931571600,1e-08,3867.6,3866.4,4.20596839]
[1753931571802,1e-08,3867.6,3866.5,4.18010454]
[1753931572627,1e-08,3867.6,3866.6,0.02586251]
[1753931572940,1e-08,3867.6,3866.7,0.02586184]
[1753931573933,1e-08,3867.6,3866.6,0.02586251]
[1753931574130,1e-08,3867.6,3866.5,4.18010454]
[1753931575019,1e-08,3867.6,3866.6,0.02586251]
[1753931575227,1e-08,3867.6,3866.6,0.02686251]
[1753931576440,1e-08,3867.6,3866.6,0.001]
[1753931577631,1e-08,3867.6,3866.6,0.02686251]
[1753931577853,1e-08,3867.6,3866.7,4.18010454]
[1753931578062,1e-08,3867.6,3866.8,0.02586117]
[1753931583357,1e-08,3867.6,3866.9,0.0258605]
[1753931583531,1e-08,3867.6,3866.7,4.18010454]
[1753931583734,1e-08,3867.6,3866.8,4.18010454]
[1753931583932,1e-08,3867.6,3866.9,0.0258605]
[1753931593849,1e-08,3867.6,3866.7,4.82393839]
[1753931596238,1e-08,3867.6,3867.0,4.82393839]
[1753931596439,1e-08,3867.6,3867.1,0.02585917]
[1753931600843,1e-08,3867.6,3867.2,4.18010454]
[1753931601033,1e-08,3867.6,3867.3,0.02585783]
[1753931601366,1e-08,3867.6,3867.4,4.18010454]
[1753931601569,1e-08,3867.6,3867.5,4.18010454]
[1753931602080,1e-08,3867.6,3867.5,4.20596103]
[1753931603066,1e-08,3867.6,3867.5,4.18010454]
[1753931611865,1e-08,3868.1,3867.5,4.18010454]
[1753931612093,1e-08,3868.1,3867.6,4.20596036]
[1753931613495,1e-08,3868.1,3867.7,4.18010454]
[1753931613825,1e-08,3868.1,3867.8,4.20595903]
[1753931614086,1e-08,3868.1,3867.8,0.02585449]
[1753931614571,1e-08,3868.1,3867.6,0.02585582]
[1753931615053,1e-08,3868.1,3867.7,4.18010454]
[1753931615367,1e-08,3868.1,3867.8,4.20595903]
[1753931615574,0.01331246,3868.4,3867.5,4.18010454]
[1753931615575,1e-08,3868.4,3867.5,4.18010454]
[1753931615774,1e-08,3868.4,3867.6,4.18010454]
[1753931616188,1e-08,3868.4,3867.7,4.18010454]
[1753931616490,1e-08,3868.4,3867.8,4.18010454]
[1753931618974,0.00200001,3868.4,3867.8,4.18010454]
[1753931619375,0.00200001,3868.4,3867.8,4.20595903]
[1753931620184,0.00200001,3868.4,3867.8,4.18010454]
[1753931621786,0.00200001,3868.4,3867.5,4.18010454]
[1753931622090,0.00200001,3868.4,3867.6,4.18010454]
[1753931622390,0.00200001,3868.4,3867.7,4.18010454]
[1753931622681,0.00200001,3868.4,3867.8,4.18010454]
[1753931625394,0.00200001,3868.4,3867.9,0.02585382]
[1753931627495,1e-08,3868.4,3867.8,9.00404293]
[1753931627697,1e-08,3868.4,3868.0,0.02585315]
[1753931627901,1e-08,3869.0,3868.2,4.82393839]
[1753931628202,0.05507342,3869.9,3866.6,0.39165278]
[1753931628203,4.86393839,3870.9,3868.3,1.82065278]
[1753931628401,4.86393839,3870.9,3868.7,4.82393839]
[1753931628585,0.04,3870.9,3868.8,0.0258478]
[1753931628779,0.04,3870.9,3869.1,4.82393839]
[1753931628982,0.04,3870.9,3869.2,4.82393839]
[1753931629509,0.04,3870.9,3869.3,0.02584446]
[1753931629796,0.04,3870.9,3869.2,4.82393839]
[1753931630697,0.04,3870.9,3867.5,0.65871817]
[1753931630698,4.82393839,3870.4,3868.2,4.82393839]
[1753931630906,0.55,3869.9,3868.1,4.82393839]
[1753931632099,0.55,3869.9,3867.7,4.82393839]
[1753931634696,0.55,3869.9,3868.1,4.82393839]
[1753931634875,0.55,3869.9,3868.2,0.02585181]
[1753931635075,0.55,3870.3,3868.2,0.02585181]
[1753931638592,0.55,3870.3,3868.1,4.82393839]
[1753931638779,0.55,3869.6,3867.6,4.82393839]
[1753931639211,0.55,3869.9,3867.9,4.82393839]
[1753931641505,0.55,3869.2,3868.0,0.02585315]
[1753931641713,0.55,3869.2,3867.8,0.001]
[1753931642231,0.55,3868.8,3867.8,0.001]
[1753931643091,0.55,3869.1,3867.8,0.001]
[1753931643707,0.55,3870.6,3867.8,0.001]
[1753931643907,0.55,3869.2,3867.8,0.001]
[1753931644297,0.55,3869.4,3867.8,0.001]
[1753931644705,0.55,3869.4,3867.9,4.82393839]
[1753931645007,0.55,3869.8,3868.0,0.02585315]
[1753931645204,0.55,3870.1,3867.8,4.82493839]
[1753931645396,0.55,3870.1,3867.9,0.02585382]
[1753931646016,0.55,3869.7,3867.9,0.02585382]
[1753931647034,0.55,3869.7,3867.8,0.001]
[1753931647214,0.55,3869.7,3867.8,0.02685449]
[1753931650093,0.55,3868.0,3867.8,0.001]
[1753931650403,0.55,3868.7,3867.8,0.001]
[1753931651523,0.55,3868.4,3867.8,0.001]
[1753931651725,0.55,3868.1,3867.8,0.001]
[1753931653025,0.55,3868.5,3867.8,0.001]
[1753931656421,0.55,3868.2,3867.8,0.001]
[1753931657000,0.55,3867.9,3867.8,0.001]
[1753931667836,0.55,3869.1,3867.8,0.001]
[1753931668039,0.55,3868.1,3867.8,0.001]
[1753931674061,5.37393839,3867.9,3867.8,0.001]
[1753931674359,0.55,3867.8,3867.4,0.001]
[1753931674567,5.37393839,3867.5,3867.4,0.001]
[1753931681554,0.55,3867.4,3866.6,0.001]
[1753931681735,5.37393839,3866.7,3866.6,0.001]
[1753931683434,0.55,3866.6,3866.3,0.001]
[1753931683635,5.37393839,3866.4,3866.3,0.001]
[1753931688080,0.55,3866.3,3865.2,0.001]
[1753931688381,0.12835662,3867.1,3865.2,0.001]
[1753931688382,0.55,3865.7,3865.2,0.001]
[1753931690443,0.58120254,3865.6,3865.2,0.001]
[1753931691380,0.55,3865.6,3865.2,0.001]
[1753931692374,0.55,3865.5,3865.2,0.001]
[1753931692678,0.55,3865.7,3865.2,0.001]
[1753931693289,0.55,3865.4,3865.2,0.001]
[1753931693787,0.55,3865.3,3865.2,0.001]
[1753931695285,4.82393839,3866.1,3865.2,0.001]
[1753931695651,0.55,3866.0,3865.2,0.001]
[1753931696865,0.55,3865.7,3865.2,0.001]
[1753931697660,0.55,3865.4,3865.2,0.001]
[1753931702464,0.55,3865.8,3865.2,0.001]
[1753931702790,0.55,3866.4,3865.2,0.001]
[1753931704679,0.55,3866.1,3865.2,0.001]
[1753931706405,0.55,3866.4,3865.2,0.001]
[1753931706875,0.55,3866.5,3865.2,0.001]
[1753931707075,0.002,3866.4,3865.2,4.18110454]
[1753931708040,0.002,3866.4,3865.2,4.20697642]
[1753931708526,0.002,3866.4,3865.2,4.18110454]
[1753931708730,0.002,3866.4,3865.3,4.18010454]
[1753931709494,0.002,3866.4,3865.2,0.001]
[1753931710327,0.002,3866.4,3865.2,0.02687188]
[1753931710698,0.002,3866.4,3865.2,0.001]
[1753931712015,4.82593839,3866.4,3865.2,0.02687188]
[1753931712228,0.55,3865.8,3865.2,0.001]
[1753931713973,0.55,3865.4,3865.2,0.001]
[1753931721099,0.58120254,3865.3,3865.2,0.001]
[1753931721392,0.55,3865.3,3865.2,0.001]
[1753931721889,0.58120254,3865.3,3865.2,0.001]
[1753931722216,0.55,3865.3,3865.2,0.001]
[1753931727754,0.55,3865.2,3865.0,0.001]
[1753931728108,5.40514093,3865.1,3865.0,0.001]
[1753931728384,0.55,3865.1,3865.0,0.001]
[1753931728950,0.58120254,3865.1,3865.0,0.001]
[1753931729486,0.55,3865.0,3864.9,0.001]
[1753931729865,0.03120254,3865.0,3864.9,0.001]
[1753931730091,0.55,3865.2,3864.9,0.001]
[1753931730507,5.37393839,3865.0,3864.9,0.001]
[1753931733010,0.55,3864.9,3864.5,0.001]
[1753931733175,5.37393839,3864.6,3864.5,0.001]
[1753931734372,0.55,3864.6,3864.5,0.001]
[1753931748233,0.002,3865.5,3864.5,0.001]
[1753931752245,0.002,3865.5,3864.6,4.18010454]
[1753931758152,0.002,3865.5,3864.7,4.18010454]
[1753931759826,0.002,3865.5,3864.9,4.82393839]
[1753931760010,0.002,3865.9,3865.3,4.82393839]
[1753931760207,0.002,3865.9,3865.4,4.18010454]
[1753931761053,0.002,3865.9,3864.9,4.82393839]
[1753931761351,0.002,3865.9,3864.5,0.001]
[1753931761524,0.002,3865.9,3865.2,4.82393839]
[1753931762328,0.002,3865.9,3864.9,4.82393839]
[1753931762729,0.002,3865.9,3864.6,4.82393839]
[1753931763257,0.552,3865.9,3864.5,0.001]
[1753931764254,0.002,3865.9,3864.5,0.001]
[1753931769551,4.82393839,3865.5,3864.5,0.001]
[1753931769752,0.58120254,3865.4,3864.5,0.001]
[1753931770054,0.55,3865.0,3864.5,0.001]
[1753931770550,0.55,3864.8,3864.5,0.001]
[1753931770931,0.55,3865.0,3864.5,0.001]
[1753931771158,0.55,3864.8,3864.5,0.001]
[1753931771652,4.82393839,3865.0,3864.5,0.001]
[1753931771853,0.58120254,3864.9,3864.5,0.001]
[1753931773728,0.55,3864.9,3864.5,0.001]
[1753931778566,0.55,3864.6,3864.5,0.001]
[1753931784393,0.55,3864.6,3864.1,0.001]
[1753931785058,0.55,3865.1,3864.1,0.001]
[1753931785457,0.55,3865.4,3864.1,0.001]
[1753931785966,4.82593839,3865.9,3864.1,0.001]
[1753931786384,0.55,3865.8,3864.1,0.001]
[1753931790683,0.55,3865.4,3864.1,0.001]
[1753931792798,0.55,3865.0,3864.1,0.001]
[1753931793114,0.002,3865.9,3861.0,0.101]
[1753931793115,0.55,3864.6,3862.4,4.81693839]
[1753931793288,0.55,3864.6,3862.4,4.84282902]
[1753931793689,0.55,3864.6,3862.4,4.81693839]
[1753931794401,0.55,3864.2,3862.4,4.81693839]
[1753931794591,0.55,3864.0,3862.4,4.81693839]
[1753931795274,0.55,3864.2,3862.4,4.81793839]
[1753931795877,0.55,3864.2,3862.4,0.001]
[1753931797316,0.55,3864.2,3862.4,4.82493839]
[1753931798216,0.55,3864.0,3862.4,0.001]
[1753931798384,0.55,3863.8,3862.4,0.001]
[1753931798713,4.82393839,3864.3,3862.4,0.001]
[1753931798714,0.55,3863.6,3862.4,0.001]
[1753931798898,0.55,3863.4,3862.4,0.001]
[1753931799316,0.55,3863.5,3862.4,0.001]
[1753931802880,0.03120254,3863.4,3862.4,0.001]
[1753931803204,0.55,3863.1,3862.4,0.001]
[1753931805494,0.55,3863.4,3862.4,0.001]
[1753931810649,4.82393839,3863.1,3862.4,0.001]
[1753931810829,0.55,3863.0,3862.4,0.001]
[1753931811715,0.55,3862.6,3862.4,0.001]
[1753931812046,0.58120254,3862.5,3862.4,0.001]
[1753931814620,0.55,3862.5,3862.4,0.001]
[1753931824995,0.55,3862.4,3862.1,0.001]
[1753931825378,0.55,3863.0,3862.1,0.001]
[1753931825563,0.002,3863.4,3862.1,0.001]
[1753931826500,0.002,3863.4,3862.4,4.82393839]
[1753931826814,0.002,3863.4,3862.5,0.02588996]
[1753931827300,0.002,3863.4,3862.4,4.82393839]
[1753931828000,0.002,3863.4,3862.7,4.82393839]
[1753931828817,0.002,3863.4,3862.4,4.82393839]
[1753931833272,0.002,3863.4,3862.1,0.001]
[1753931836096,0.55,3863.3,3862.1,0.001]
[1753931836297,0.55,3863.1,3862.1,0.001]
[1753931836806,0.03120254,3863.0,3862.1,0.001]
[1753931837007,0.55,3863.1,3862.1,0.001]
[1753931837212,0.55,3862.9,3862.1,0.001]
[1753931837514,0.55,3863.3,3862.1,0.001]
[1753931838307,0.55,3863.1,3862.1,0.001]
[1753931838625,0.55,3862.9,3862.1,0.001]
[1753931838796,0.55,3863.3,3862.1,0.001]
[1753931838991,0.58120254,3863.3,3862.1,0.001]
[1753931839445,0.55,3863.3,3862.1,0.001]
[1753931842035,0.55,3862.9,3862.1,0.001]
[1753931842234,0.58120254,3862.9,3862.1,0.001]
[1753931843446,0.55,3862.9,3862.1,0.001]
[1753931844288,0.55,3862.7,3862.1,0.001]
[1753931844444,0.55,3862.5,3862.1,0.001]
[1753931844651,0.55,3862.4,3862.1,0.001]
[1753931845653,0.002,3863.4,3862.1,4.82493839]
[1753931845974,0.002,3863.4,3863.0,4.82393839]
[1753931846946,0.002,3863.4,3863.1,0.02588594]
[1753931847348,0.002,3863.4,3863.0,4.82393839]
[1753931847780,1e-08,3863.4,3863.1,0.02588594]
[1753931848875,1e-08,3863.4,3863.0,4.82393839]
[1753931849264,1e-08,3863.8,3863.1,0.02588594]
[1753931849566,1e-08,3863.8,3863.7,4.82393839]
[1753931850762,1e-08,3863.8,3863.4,7.3354259]
[1753931857204,1e-08,3863.8,3863.2,4.25]
[1753931860707,1e-08,3863.8,3863.3,4.25]
[1753931862495,1e-08,3863.8,3862.3,0.001]
[1753931862710,1e-08,3863.8,3862.4,4.25]
[1753931863997,1e-08,3863.8,3862.7,7.3354259]
[1753931865845,1e-08,3863.8,3862.8,4.25]
[1753931866738,1e-08,3863.8,3863.2,7.3354259]
[1753931866941,1e-08,3863.8,3863.3,4.25]
[1753931867103,1e-08,3863.8,3863.4,4.25]
[1753931872848,1e-08,3863.8,3863.5,4.82706481]
[1753931874357,1e-08,3863.8,3863.6,0.02588259]
[1753931874514,1e-08,3863.8,3863.2,0.31692094]
[1753931874719,1e-08,3863.8,3863.7,4.82706481]
[1753931875652,1e-08,3863.8,3863.2,4.82706481]
[1753931875851,1e-08,3863.8,3863.6,4.82706481]
[1753931877451,1e-08,3863.8,3863.7,0.02588192]
[1753931879253,1e-08,3863.8,3863.6,4.82706481]
[1753931880517,1e-08,3863.8,3863.7,4.25]
[1753931882261,0.002,3865.5,3863.8,6.99999999]
[1753931882461,0.002,3865.5,3864.3,4.82706481]
[1753931884219,0.002,3865.5,3864.6,4.82706481]
[1753931884426,0.002,3865.5,3864.7,0.02587522]
[1753931886962,0.002,3865.5,3863.5,4.82706481]
[1753931887164,0.002,3865.5,3863.6,4.25]
[1753931888256,0.55,3865.4,3863.6,4.25]
[1753931891183,0.55,3865.4,3863.7,4.25]
[1753931891784,0.58120254,3865.4,3863.7,4.25]
[1753931892287,0.55,3865.4,3863.7,4.25]
[1753931893568,0.55,3865.2,3863.7,4.25]
[1753931893894,0.55,3865.0,3863.7,4.25]
[1753931894192,0.55,3865.4,3863.7,4.25]
[1753931894353,0.55,3865.4,3863.9,4.82706481]
[1753931894681,0.002,3865.5,3864.3,4.82706481]
[1753931894981,0.002,3865.5,3864.4,4.25]
[1753931895565,0.002,3865.5,3864.5,4.25]
[1753931899406,0.55,3865.4,3864.5,4.25]
[1753931899563,0.55,3865.2,3864.5,4.25]
[1753931899896,0.55,3865.0,3864.5,4.25]
[1753931900101,0.55,3865.0,3863.8,4.25]
[1753931900300,0.002,3865.5,3863.8,4.25]
[1753931901468,0.55,3865.4,3863.8,4.25]
[1753931902985,0.55,3865.2,3863.8,4.25]
[1753931903286,0.55,3865.0,3863.8,4.25]
[1753931903458,0.55,3864.8,3863.8,4.25]
[1753931903658,0.55,3864.6,3863.8,4.25]
[1753931903858,0.55,3864.4,3863.9,4.25]
[1753931904283,0.55,3865.3,3863.9,4.25]
[1753931904652,0.55,3865.4,3863.9,4.25]
[1753931904977,0.55,3865.4,3864.0,4.25]
[1753931905199,0.002,3865.5,3864.0,4.25]
[1753931905690,0.55,3865.4,3864.0,4.25]
[1753931905852,0.002,3865.5,3864.0,4.25]
[1753931907484,0.002,3865.5,3863.8,0.001]
[1753931911874,0.552,3865.5,3863.8,0.001]
[1753931913609,0.55,3865.3,3863.8,0.001]
[1753931915196,0.002,3865.5,3863.8,0.001]
[1753931915394,0.55,3865.3,3863.8,0.001]
[1753931916505,0.002,3865.5,3863.8,0.001]
[1753931916791,0.55,3865.3,3863.8,0.001]
[1753931916998,0.55,3865.1,3863.8,0.001]
[1753931917593,0.552,3865.5,3863.8,0.001]
[1753931917797,0.55,3865.3,3863.8,0.001]
[1753931918691,0.55,3865.1,3863.8,0.001]
[1753931918999,0.55,3864.9,3863.8,0.001]
[1753931920200,0.55,3865.1,3863.8,0.001]
[1753931920856,0.002,3865.5,3863.8,4.82806481]
[1753931921062,0.002,3865.5,3864.5,4.82706481]
[1753931921261,0.002,3865.5,3864.6,0.02587589]
[1753931921801,1e-08,3865.5,3865.3,4.82706481]
[1753931922164,1e-08,3865.5,3864.9,4.82706481]
[1753931922365,1e-08,3865.5,3864.5,4.82706481]
[1753931931602,1e-08,3865.5,3864.8,4.82706481]
[1753931932304,1e-08,3865.5,3864.5,4.82706481]
[1753931934305,1e-08,3865.5,3864.2,4.82706481]
[1753931939038,0.55,3865.4,3864.2,4.82706481]
[1753931939843,1e-08,3865.5,3864.2,4.82706481]
[1753931941414,1e-08,3865.5,3865.2,4.82706481]
[1753931942537,1e-08,3865.5,3864.8,4.82706481]
[1753931943142,1e-08,3865.5,3864.4,4.82706481]
[1753931948674,1e-08,3865.5,3864.4,4.82806481]
[1753931956563,1e-08,3865.5,3864.4,0.001]
[1753931956973,0.55,3865.4,3864.4,0.001]
[1753931957148,1e-08,3865.5,3864.4,0.001]
[1753931968191,1e-08,3865.5,3864.5,4.25]
[1753931974028,1e-08,3865.5,3864.6,4.25]
[1753931974823,1e-08,3865.5,3864.4,0.001]
[1753931974824,0.55,3865.3,3864.4,4.251]
[1753931975004,0.55,3865.1,3864.4,4.251]
[1753931979939,0.55,3865.3,3864.4,0.001]
[1753931989642,0.55,3865.1,3864.4,0.001]
[1753931990415,0.55,3864.9,3864.4,0.001]
[1753931990616,0.55,3864.7,3864.4,0.001]
[1753931990843,0.55,3864.5,3864.4,0.001]
[1753931991551,0.55,3864.9,3864.4,0.001]
[1753931992330,0.55,3864.7,3864.4,0.001]
[1753931992530,0.55,3864.5,3864.4,0.001]
[1753931993053,0.58120254,3864.5,3864.4,0.001]
[1753931994332,0.55,3864.5,3864.4,0.001]
[1753931996358,0.58120254,3864.5,3864.4,0.001]
[1753931998261,0.58120254,3864.5,3864.0,0.001]
[1753931998424,5.37706481,3864.1,3864.0,0.001]
[1753932004934,4.82706481,3864.8,3864.0,0.001]
[1753932005367,0.55,3864.7,3864.0,0.001]
[1753932006065,0.03120254,3864.7,3864.0,0.001]
[1753932006231,0.27319614,3865.1,3864.0,0.001]
[1753932006651,0.55,3865.0,3864.0,0.001]
[1753932007037,1e-08,3865.5,3864.0,0.001]
[1753932007559,0.55,3865.4,3864.0,0.001]
[1753932007754,0.55,3865.2,3864.0,0.001]
[1753932008673,0.55000001,3865.5,3864.0,0.001]
[1753932008875,0.2420631,3865.4,3864.0,0.001]
[1753932009071,1e-08,3865.5,3864.0,0.001]
[1753932009382,0.24205311,3865.5,3864.0,0.02687991]
[1753932009876,1e-08,3865.5,3864.0,0.02687991]
[1753932012270,1e-08,3865.5,3864.1,4.25]
[1753932013382,0.55,3865.2,3864.1,4.25]
[1753932014668,1e-08,3865.5,3864.1,4.25]
[1753932015460,1e-08,3865.5,3864.2,4.25]
[1753932018151,0.55,3864.9,3864.2,4.25]
[1753932019491,0.55,3865.2,3864.2,4.25]
[1753932021285,0.55,3865.2,3864.3,4.25]
[1753932026892,0.55,3864.4,3864.1,4.25]
[1753932027053,0.55,3864.4,3864.0,0.001]
[1753932028716,0.03120254,3864.3,3864.0,0.001]
[1753932028882,0.55,3864.2,3864.0,0.001]
[1753932029412,1e-08,3865.5,3864.0,0.001]
[1753932029413,5.40826735,3864.1,3864.0,0.001]
[1753932029705,5.37706481,3864.1,3864.0,0.001]
[1753932030489,0.55,3864.1,3864.0,0.001]
[1753932032657,0.58120254,3864.1,3864.0,0.001]
[1753932041083,0.55,3864.0,3863.8,0.001]
[1753932041301,5.37706481,3863.9,3863.8,0.001]
[1753932053028,5.61943958,3863.9,3863.8,0.001]
[1753932055604,4.82706481,3864.8,3863.8,0.001]
[1753932055790,0.2422019,3864.7,3863.8,0.001]
[1753932055985,0.2422019,3864.6,3863.8,0.001]
[1753932056222,0.002,3864.0,3863.8,0.001]
[1753932065335,0.552,3864.0,3863.8,0.001]
[1753932065743,0.002,3864.0,3863.8,0.001]
[1753932066247,0.552,3864.0,3863.8,0.001]
[1753932066447,0.002,3864.0,3863.8,0.001]
[1753932066829,0.552,3864.0,3863.8,0.001]
[1753932067555,0.79237868,3863.9,3863.8,0.001]
[1753932068139,0.79237971,3863.9,3863.8,0.001]
[1753932073262,0.7924228,3863.9,3863.8,0.001]
[1753932074056,0.79243044,3863.9,3863.8,0.001]
[1753932077059,0.79245482,3863.9,3863.8,0.001]
[1753932078629,0.55,3863.9,3863.8,0.001]
[1753932081173,0.79252751,3863.9,3863.8,0.001]
[1753932081334,0.55,3863.9,3863.8,0.001]
[1753932082163,0.58120254,3863.9,3863.8,0.001]
[1753932082327,0.55,3863.9,3863.8,0.001]
[1753932083656,0.79254172,3863.9,3863.8,0.001]
[1753932083879,0.55,3863.9,3863.8,0.001]
[1753932084553,0.7925595,3863.9,3863.8,0.001]
[1753932086776,0.82376204,3863.9,3863.8,0.001]
[1753932087385,0.82379243,3863.9,3863.8,0.001]
[1753932087588,0.58120254,3863.9,3863.8,0.001]
[1753932088089,0.82379244,3863.9,3863.8,0.001]
[1753932092596,0.7925899,3863.9,3863.8,0.001]
[1753932095557,0.79271516,3863.9,3863.8,0.001]
[1753932098185,0.24271516,3863.9,3863.8,0.001]
[1753932098354,0.002,3864.0,3863.8,0.001]
[1753932108180,0.55,3863.9,3863.8,0.001]
[1753932114813,0.002,3864.0,3863.8,0.001]
[1753932121688,0.55,3863.9,3863.8,0.001]
[1753932123024,5.37706481,3863.9,3863.8,0.001]
[1753932123620,0.552,3864.0,3863.8,0.001]
[1753932124225,0.58320254,3864.0,3863.8,0.001]
[1753932128442,0.002,3864.0,3863.8,0.001]
[1753932128825,0.552,3864.0,3863.8,0.001]
[1753932129199,0.79264732,3863.9,3863.8,0.001]
[1753932130934,0.55,3863.9,3863.8,0.001]
[1753932146864,0.58120254,3863.9,3863.8,0.001]
[1753932147166,0.55,3863.9,3863.8,0.001]
[1753932148463,5.40826735,3863.9,3863.8,0.001]
[1753932148634,5.37706481,3863.9,3863.8,0.001]
[1753932149868,0.55,3863.9,3863.8,0.001]
[1753932151269,0.002,3864.0,3863.8,0.001]
[1753932175300,0.002,3864.0,3863.9,4.25]
[1753932198849,0.002,3864.0,3863.8,0.001]
[1753932205976,0.03120254,3864.2,3863.8,0.001]
[1753932206153,0.002,3864.4,3863.8,0.001]
[1753932206355,0.03120254,3864.3,3863.8,0.001]
[1753932207247,0.002,3864.4,3863.8,0.001]
[1753932207449,0.03120254,3864.3,3863.8,0.001]
[1753932207874,0.002,3864.4,3863.8,0.001]
[1753932208080,0.55,3864.2,3863.8,0.001]
[1753932208280,0.55,3864.0,3863.8,0.001]
[1753932209289,0.552,3864.4,3863.8,0.001]
[1753932209589,0.55,3864.2,3863.8,0.001]
[1753932209755,0.55,3864.0,3863.8,0.001]
[1753932210085,0.58120254,3863.9,3863.8,0.001]
[1753932210790,0.55,3863.9,3863.8,0.001]
[1753932217429,5.37706481,3863.9,3863.8,0.001]
[1753932217603,0.55,3863.9,3863.8,0.001]
[1753932218133,0.79251534,3863.9,3863.8,0.001]
[1753932227150,0.24251534,3863.9,3863.8,0.001]
[1753932227458,0.002,3864.3,3863.8,0.001]
[1753932228149,0.552,3864.3,3863.8,0.001]
[1753932228362,0.002,3864.3,3863.8,0.001]
[1753932228719,0.552,3864.3,3863.8,0.001]
[1753932229114,0.002,3864.3,3863.8,0.001]
[1753932229620,0.552,3864.3,3863.8,0.001]
[1753932230044,0.002,3864.3,3863.8,0.001]
[1753932230644,0.552,3864.3,3863.8,0.001]
[1753932234083,0.002,3864.3,3863.8,0.001]
[1753932234840,0.552,3864.3,3863.8,0.001]
[1753932238794,0.002,3864.3,3863.8,0.001]
[1753932240484,0.552,3864.3,3863.8,0.001]
[1753932242055,0.58320254,3864.3,3863.8,0.001]
[1753932242681,0.552,3864.3,3863.8,0.001]
[1753932242955,4.38041844,3864.4,3863.8,0.001]
[1753932243155,0.03120254,3864.3,3863.8,0.001]
[1753932243589,4.38041844,3864.4,3863.8,0.001]
[1753932244867,0.55,3864.3,3863.8,0.001]
[1753932246888,0.58120254,3864.3,3863.8,0.001]
[1753932247062,0.55,3864.3,3863.8,0.001]
[1753932247663,0.002,3864.7,3863.8,0.001]
[1753932247961,0.55,3864.6,3863.8,0.001]
[1753932248158,0.55,3864.4,3863.8,0.001]
[1753932248792,0.002,3864.3,3863.8,0.001]
[1753932249083,0.002,3864.3,3862.7,4.203]
[1753932249360,0.002,3864.3,3862.8,4.203]
[1753932249789,0.002,3864.3,3862.6,4.82806481]
[1753932253795,0.002,3864.3,3863.4,0.001]
[1753932256204,0.55,3864.2,3863.4,0.001]
[1753932256358,0.002,3864.3,3863.4,0.001]
[1753932256563,0.552,3864.3,3863.4,0.001]
[1753932257060,0.002,3864.3,3863.4,0.001]
[1753932257261,0.552,3864.3,3863.4,0.001]